bitfinex/quotes_SOLUSD_20240616
["timestamp","ask_amount","ask_price","bid_price","bid_amount"]
[1718502500497,2.5613,144.46,144.41,6.6025]
[1718502500702,2.5613,144.46,144.4,16.0085]
[1718502500703,5.62,144.44,144.4,16.0085]
[1718502501073,7.6835,144.47,144.4,16.0085]
[1718502501272,5.62,144.45,144.4,16.0085]
[1718502501715,30.1629,144.48,144.4,16.0085]
[1718502501995,5.62,144.46,144.4,21.6285]
[1718502502592,2.5608,144.49,144.41,0.34]
[1718502502810,17.9245,144.5,144.42,5.79]
[1718502502811,5.62,144.48,144.42,5.79]
[1718502503174,5.62,144.46,144.4,16.1785]
[1718502503504,5.62,144.46,144.4,21.6285]
[1718502505593,5.62,144.46,144.41,5.62]
[1718502506573,5.62,144.46,144.4,21.6285]
[1718502510693,5.62,144.45,144.4,21.6285]
[1718502511014,5.62,144.44,144.4,16.0085]
[1718502519536,5.62,144.46,144.4,21.6285]
[1718502520536,5.62,144.45,144.4,21.6285]
[1718502523442,5.62,144.45,144.4,16.0085]
[1718502523607,5.62,144.45,144.4,21.6285]
[1718502525019,5.62,144.45,144.4,16.0085]
[1718502525228,5.62,144.45,144.4,21.6285]
[1718502527155,5.62,144.44,144.4,16.0085]
[1718502532651,5.62,144.43,144.4,16.0085]
[1718502537435,2.5614,144.46,144.4,16.0085]
[1718502537629,56.0059,144.48,144.4,16.0085]
[1718502537851,5.62,144.44,144.4,16.0085]
[1718502538229,15.5994,144.48,144.4,16.0085]
[1718502538431,7.6834,144.47,144.4,16.0085]
[1718502538659,27.6834,144.47,144.4,16.0085]
[1718502538835,35.3666,144.47,144.4,16.0085]
[1718502539254,45.6109,144.47,144.4,16.0085]
[1718502539464,7.6837,144.46,144.4,16.0085]
[1718502541769,25.6125,144.46,144.4,16.0085]
[1718502541926,5.62,144.43,144.4,16.0085]
[1718502542248,5.62,144.43,144.39,0.8597532]
[1718502542249,5.62,144.42,144.39,0.8597532]
[1718502544264,2.5619,144.43,144.39,0.8597532]
[1718502544265,5.62,144.41,144.39,0.8597532]
[1718502545564,120.0,144.47,144.39,0.8597532]
[1718502545565,5.62,144.4,144.39,0.8597532]
[1718502555985,5.62,144.41,144.39,0.8597532]
[1718502559982,5.62,144.4,144.39,0.8597532]
[1718502566984,5.62,144.41,144.39,0.8597532]
[1718502575703,5.62,144.4,144.39,0.8597532]
[1718502587795,5.62,144.41,144.39,0.8597532]
[1718502588092,5.62,144.42,144.39,0.8597532]
[1718502588910,25.6152,144.45,144.39,0.8597532]
[1718502589117,5.62,144.42,144.39,0.8597532]
[1718502589317,5.62,144.43,144.39,0.8597532]
[1718502589690,5.62,144.42,144.39,0.8597532]
[1718502595706,5.62,144.43,144.39,0.8597532]
[1718502599730,5.62,144.44,144.39,0.8597532]
[1718502600227,23.0522,144.46,144.39,0.8597532]
[1718502600228,2.5613,144.46,144.39,0.8597532]
[1718502600401,38.6479,144.48,144.39,6.4797532]
[1718502600603,5.62,144.46,144.4,5.62]
[1718502601304,13.3038,144.46,144.4,5.62]
[1718502601631,5.62,144.45,144.39,6.4797532]
[1718502601802,8.1814,144.45,144.39,6.4797532]
[1718502602006,5.62,144.43,144.39,0.8597532]
[1718502604529,5.62,144.44,144.39,0.8597532]
[1718502604712,5.62,144.45,144.39,0.8597532]
[1718502604918,5.62,144.45,144.39,6.4797532]
[1718502608017,2.5612,144.46,144.39,6.4797532]
[1718502608343,45.6118,144.47,144.39,6.4797532]
[1718502608845,7.6837,144.46,144.39,6.4797532]
[1718502609534,20.0,144.47,144.4,0.17]
[1718502609729,5.62,144.46,144.41,16.3882]
[1718502612142,17.9256,144.49,144.42,0.17]
[1718502612347,5.62,144.47,144.42,0.34]
[1718502612641,5.62,144.46,144.41,22.6783]
[1718502613642,5.62,144.47,144.41,28.2983]
[1718502613946,5.62,144.46,144.41,22.6783]
[1718502614813,2.5604,144.51,144.42,0.34]
[1718502615017,6.39120573,144.54,144.46,5.62]
[1718502615018,7.6802,144.53,144.46,5.62]
[1718502615321,5.62,144.52,144.46,11.9101]
[1718502615717,5.62,144.52,144.47,5.62]
[1718502616139,17.9194,144.54,144.47,5.62]
[1718502616364,2.5595,144.56,144.49,5.62]
[1718502616651,23.0345,144.57,144.5,21.357]
[1718502616838,5.62,144.55,144.5,21.357]
[1718502617214,25.5939,144.57,144.5,21.357]
[1718502617439,5.62,144.55,144.5,21.357]
[1718502618421,5.62,144.54,144.5,15.737]
[1718502620028,25.5938,144.57,144.5,15.737]
[1718502620222,5.62,144.54,144.5,15.737]
[1718502620821,5.62,144.52,144.46,22.0271]
[1718502621027,5.62,144.51,144.46,27.6471]
[1718502621235,5.62,144.53,144.47,5.62]
[1718502621424,5.62,144.54,144.48,5.62]
[1718502621624,5.62,144.54,144.49,5.62]
[1718502621820,5.62,144.55,144.5,15.737]
[1718502622038,5.62,144.56,144.5,21.357]
[1718502622245,15.8772,144.6,144.5,21.357]
[1718502622433,5.62,144.56,144.5,21.357]
[1718502622638,5.62,144.55,144.51,0.17]
[1718502622847,5.62,144.56,144.51,0.17]
[1718502626154,7.6775,144.58,144.51,0.34]
[1718502626371,5.62,144.56,144.51,0.34]
[1718502628358,5.62,144.56,144.51,6.6301]
[1718502629469,20.0,144.59,144.51,6.2901]
[1718502629771,5.62,144.54,144.51,6.2901]
[1718502630062,5.62,144.53,144.51,6.2901]
[1718502630283,5.62,144.53,144.5,15.737]
[1718502630443,5.62,144.52,144.5,15.737]
[1718502630644,5.62,144.52,144.47,6.2901]
[1718502632856,2.5595,144.56,144.48,0.17]
[1718502633040,5.62,144.54,144.49,5.62]
[1718502633369,5.62,144.55,144.49,5.62]
[1718502633957,5.62,144.55,144.5,5.62]
[1718502634357,7.6777,144.58,144.5,5.62]
[1718502634558,5.62,144.56,144.5,5.62]
[1718502634766,2.5593,144.57,144.5,5.62]
[1718502634967,5.62,144.56,144.5,5.62]
[1718502638466,7.6763,144.6,144.53,5.62]
[1718502638648,7.6763,144.6,144.54,5.62]
[1718502638649,5.62,144.59,144.54,5.62]
[1718502638872,5.62,144.59,144.52,6.3675]
[1718502638873,8.1789,144.59,144.53,5.62]
[1718502639271,5.62,144.58,144.52,11.9875]
[1718502639477,5.62,144.58,144.53,0.17]
[1718502640475,23.0307,144.59,144.52,11.8175]
[1718502640672,5.62,144.55,144.52,6.1975]
[1718502642576,5.62,144.54,144.51,15.9149]
[1718502648755,5.62,144.56,144.51,15.9149]
[1718502648956,5.62,144.58,144.52,5.62]
[1718502649156,5.62,144.58,144.51,15.9149]
[1718502649357,5.62,144.58,144.53,5.62]
[1718502650092,5.62,144.59,144.53,5.62]
[1718502651388,5.62,144.6,144.55,6.0219]
[1718502651567,7.6753,144.62,144.55,6.0219]
[1718502651773,5.62,144.6,144.55,6.0219]
[1718502651990,5.62,144.6,144.55,11.6419]
[1718502652357,2.5583,144.63,144.56,15.6481]
[1718502652571,5.62,144.61,144.56,21.2681]
[1718502653207,7.6747,144.63,144.56,21.2681]
[1718502653510,5.62,144.61,144.56,15.6481]
[1718502654176,7.6747,144.63,144.56,15.6481]
[1718502654499,5.62,144.61,144.56,15.6481]
[1718502654686,5.62,144.61,144.56,21.2681]
[1718502654883,5.62,144.61,144.56,15.6481]
[1718502655186,2.5582,144.63,144.56,21.2681]
[1718502655512,25.5814,144.64,144.56,21.2681]
[1718502655668,5.62,144.61,144.56,21.2681]
[1718502655866,5.62,144.62,144.56,21.2681]
[1718502656068,7.6739,144.65,144.57,6.13]
[1718502656304,5.62,144.63,144.58,0.17]
[1718502656598,5.62,144.62,144.58,0.17]
[1718502656969,5.62,144.63,144.58,0.17]
[1718502657595,7.6734,144.66,144.58,5.79]
[1718502657896,5.62,144.65,144.59,5.96]
[1718502658114,5.62,144.65,144.59,5.62]
[1718502658478,39.2587,144.69,144.6,6.2284]
[1718502658698,5.62,144.65,144.6,6.0584]
[1718502659277,2.5575,144.67,144.6,11.6784]
[1718502659503,5.62,144.66,144.61,0.34]
[1718502659876,5.62,144.65,144.61,0.34]
[1718502660297,2.5575,144.67,144.61,0.34]
[1718502660498,5.62,144.65,144.61,0.34]
[1718502660797,5.62,144.65,144.61,0.17]
[1718502660999,5.62,144.65,144.6,6.0584]
[1718502661895,25.5759,144.67,144.6,6.0584]
[1718502662108,5.62,144.65,144.6,6.0584]
[1718502663605,5.62,144.63,144.6,6.0584]
[1718502663809,2.5579,144.65,144.6,6.0584]
[1718502664100,5.62,144.63,144.6,6.0584]
[1718502664811,5.62,144.64,144.6,6.0584]
[1718502665297,5.62,144.63,144.57,5.62]
[1718502665484,5.62,144.62,144.57,0.17]
[1718502665802,5.62,144.62,144.57,0.68]
[1718502667277,5.62,144.62,144.57,0.17]
[1718502667586,5.62,144.62,144.56,27.3265]
[1718502670797,5.62,144.62,144.56,21.7065]
[1718502670990,5.62,144.62,144.56,27.3265]
[1718502672807,5.62,144.6,144.56,21.7065]
[1718502673016,5.62,144.59,144.56,21.7065]
[1718502675408,5.62,144.59,144.56,15.6481]
[1718502676292,15.3506,144.62,144.56,15.6481]
[1718502676492,5.62,144.59,144.56,15.6481]
[1718502677093,5.62,144.59,144.52,22.248]
[1718502677297,5.62,144.58,144.52,22.248]
[1718502677485,5.62,144.57,144.52,22.248]
[1718502678105,5.62,144.57,144.52,27.868]
[1718502678804,5.62,144.58,144.52,27.868]
[1718502680610,15.3527,144.6,144.52,27.868]
[1718502680793,5.62,144.57,144.52,27.868]
[1718502681108,5.62,144.57,144.52,22.248]
[1718502682526,5.62,144.57,144.52,27.868]
[1718502684711,5.62,144.57,144.52,22.248]
[1718502686020,45.5063,144.62,144.52,22.248]
[1718502686323,5.62,144.6,144.54,5.62]
[1718502686697,2.558,144.65,144.57,15.6845]
[1718502686893,5.62,144.63,144.57,27.868]
[1718502687110,5.62,144.63,144.58,5.62]
[1718502687495,5.62,144.63,144.57,22.248]
[1718502687718,5.62,144.62,144.57,22.248]
[1718502688617,5.62,144.61,144.57,22.248]
[1718502688819,5.62,144.6,144.57,22.248]
[1718502692236,5.62,144.61,144.57,22.248]
[1718502693432,5.62,144.59,144.53,28.0473]
[1718502693627,5.62,144.59,144.54,0.17]
[1718502695132,5.62,144.58,144.53,22.2573]
[1718502696630,5.62,144.59,144.53,27.8773]
[1718502697138,5.62,144.61,144.55,5.62]
[1718502698218,5.62,144.6,144.54,5.79]
[1718502698419,5.62,144.59,144.53,22.2573]
[1718502698629,5.62,144.58,144.53,27.8773]
[1718502698835,23.0264,144.62,144.53,27.8773]
[1718502699015,5.62,144.6,144.54,5.79]
[1718502700044,5.62,144.61,144.55,5.96]
[1718502700247,5.62,144.62,144.56,5.62]
[1718502700652,5.62,144.6,144.55,5.62]
[1718502705630,5.62,144.61,144.55,5.62]
[1718502710333,25.5816,144.64,144.55,5.62]
[1718502710648,5.62,144.62,144.56,5.62]
[1718502711161,5.62,144.61,144.56,5.62]
[1718502711660,5.62,144.61,144.55,5.62]
[1718502712854,5.62,144.61,144.54,0.68]
[1718502713029,5.62,144.61,144.55,5.62]
[1718502715958,5.62,144.59,144.53,22.2573]
[1718502716171,2.559,144.59,144.53,22.2573]
[1718502716367,5.62,144.57,144.53,22.2573]
[1718502721079,5.62,144.58,144.53,22.2573]
[1718502722977,5.62,144.57,144.53,22.2573]
[1718502723343,5.62,144.55,144.53,16.0203]
[1718502723942,38.9195,144.62,144.53,16.0203]
[1718502723943,5.62,144.56,144.53,16.0203]
[1718502724746,5.62,144.57,144.53,16.0203]
[1718502726661,5.62,144.56,144.53,16.0203]
[1718502726858,5.62,144.55,144.53,16.0203]
[1718502727062,5.62,144.55,144.49,26.93633804]
[1718502727359,5.62,144.54,144.49,21.332]
[1718502727563,5.62,144.54,144.49,26.952]
[1718502728184,5.62,144.53,144.49,21.332]
[1718502730360,25.5939,144.57,144.49,21.332]
[1718502730361,5.62,144.54,144.49,21.332]
[1718502731189,5.62,144.53,144.49,21.332]
[1718502731959,5.62,144.52,144.49,15.3218]
[1718502732158,5.62,144.51,144.46,22.322]
[1718502732463,5.62,144.51,144.46,27.942]
[1718502733666,5.62,144.52,144.46,27.942]
[1718502733988,5.62,144.53,144.48,5.62]
[1718502734189,31.8734,144.57,144.48,5.62]
[1718502734364,5.62,144.54,144.48,5.62]
[1718502735393,5.62,144.56,144.51,16.1823]
[1718502735561,5.62,144.57,144.51,21.8023]
[1718502736476,5.62,144.56,144.51,16.1823]
[1718502736680,5.62,144.55,144.51,16.1823]
[1718502738073,2.5592,144.58,144.51,16.1823]
[1718502738286,5.62,144.56,144.51,16.1823]
[1718502739088,5.62,144.56,144.51,21.8023]
[1718502739277,5.1177,144.6,144.51,21.8023]
[1718502739592,5.62,144.57,144.52,0.17]
[1718502740095,5.62,144.57,144.51,21.8023]
[1718502740391,5.62,144.56,144.51,21.8023]
[1718502740594,5.62,144.56,144.51,16.1823]
[1718502743304,2.5589,144.6,144.52,0.17]
[1718502743484,5.62,144.58,144.52,6.3]
[1718502744020,5.62,144.58,144.53,5.62]
[1718502744601,20.0,144.61,144.53,5.62]
[1718502744770,5.62,144.58,144.53,5.62]
[1718502744970,5.62,144.59,144.53,5.62]
[1718502747684,5.62,144.58,144.53,5.62]
[1718502747878,16.5173,144.64,144.54,22.492]
[1718502748081,5.62,144.63,144.57,5.62]
[1718502749204,5.62,144.62,144.56,5.62]
[1718502749402,5.62,144.61,144.55,5.96]
[1718502752203,5.62,144.62,144.56,5.79]
[1718502752415,5.62,144.62,144.57,0.17]
[1718502752586,5.62,144.61,144.56,5.62]
[1718502752788,5.62,144.6,144.55,0.34]
[1718502752981,5.62,144.59,144.55,0.34]
[1718502754045,5.62,144.6,144.55,0.34]
[1718502755024,25.5814,144.64,144.55,5.96]
[1718502755200,5.62,144.61,144.55,5.96]
[1718502755583,2.5577,144.66,144.57,5.62]
[1718502755784,2.5577,144.66,144.59,15.8375]
[1718502755785,5.62,144.64,144.59,15.8375]
[1718502756984,25.5775,144.66,144.59,15.8375]
[1718502757192,5.62,144.64,144.59,15.8375]
[1718502757506,5.62,144.64,144.59,22.3663]
[1718502760019,5.62,144.65,144.59,27.9863]
[1718502760417,5.62,144.65,144.6,5.79]
[1718502764617,5.62,144.65,144.6,0.17]
[1718502767706,8.1778,144.65,144.59,22.3663]
[1718502767903,5.62,144.63,144.59,22.3663]
[1718502769827,5.62,144.64,144.59,22.3663]
[1718502770295,5.62,144.65,144.59,27.9863]
[1718502771403,5.62,144.65,144.6,0.17]
[1718502773206,15.3453,144.67,144.6,5.79]
[1718502773407,5.62,144.66,144.6,5.79]
[1718502773634,8.1777,144.66,144.6,5.79]
[1718502773938,5.62,144.65,144.6,0.17]
[1718502774718,5.62,144.64,144.6,0.17]
[1718502777510,5.62,144.64,144.59,22.3663]
[1718502777829,5.62,144.62,144.59,15.8375]
[1718502778038,5.62,144.63,144.59,15.8375]
[1718502779214,5.62,144.62,144.59,15.8375]
[1718502782617,5.62,144.61,144.56,22.2304]
[1718502784746,5.62,144.61,144.56,27.8504]
[1718502790929,5.62,144.62,144.56,27.8504]
[1718502796137,25.5796,144.65,144.56,27.8504]
[1718502796354,5.62,144.63,144.57,5.62]
[1718502797860,5.1152,144.67,144.58,0.17]
[1718502798069,5.62,144.65,144.59,5.62]
[1718502799376,2.5577,144.66,144.59,5.62]
[1718502799543,5.62,144.65,144.59,5.62]
[1718502801358,7.6727,144.67,144.6,15.4347]
[1718502801542,5.62,144.65,144.6,15.4347]
[1718502803854,5.62,144.65,144.6,21.4433]
[1718502804053,15.3453,144.67,144.6,21.4433]
[1718502804054,5.62,144.66,144.6,27.0633]
[1718502806391,8.1777,144.66,144.6,27.0633]
[1718502807780,13.2931,144.66,144.6,27.0633]
[1718502807953,31.1973,144.66,144.6,27.0633]
[1718502808156,2.5579,144.65,144.6,27.0633]
[1718502808375,8.1779,144.65,144.6,21.4433]
[1718502808670,5.62,144.65,144.6,21.4433]
[1718502811902,5.62,144.65,144.6,27.0633]
[1718502812278,5.62,144.66,144.6,27.0633]
[1718502812593,7.6723,144.68,144.61,0.17]
[1718502812908,5.62,144.66,144.61,5.79]
[1718502813488,7.6723,144.68,144.61,5.79]
[1718502813774,5.62,144.68,144.62,5.62]
[1718502814313,5.62,144.68,144.63,6.06127516]
[1718502814671,8.1774,144.68,144.63,5.62]
[1718502815100,8.1774,144.68,144.62,5.62]
[1718502815700,25.5728,144.69,144.62,5.62]
[1718502815888,7.6719,144.69,144.63,5.96]
[1718502816072,5.62,144.69,144.64,15.5315]
[1718502816273,20.9623,144.7,144.64,21.1515]
[1718502816703,5.62,144.69,144.64,15.5315]
[1718502816882,8.1771,144.69,144.64,15.5315]
[1718502817199,2.557,144.7,144.65,1.38241212]
[1718502817506,8.177,144.7,144.65,7.00241212]
[1718502817923,2.557,144.7,144.65,7.00241212]
[1718502818108,2.5566,144.72,144.66,5.79]
[1718502818309,23.0087,144.73,144.67,0.17]
[1718502818509,5.62,144.72,144.67,0.17]
[1718502818995,7.6696,144.73,144.66,0.51]
[1718502818996,5.62,144.73,144.66,0.51]
[1718502819195,7.6689,144.74,144.68,21.1515]
[1718502819435,13.2889,144.74,144.68,21.1515]
[1718502819731,8.1764,144.73,144.68,21.1515]
[1718502819912,8.1764,144.73,144.68,15.5315]
[1718502820450,5.62,144.73,144.68,15.5315]
[1718502820742,7.669,144.74,144.68,15.5315]
[1718502820899,5.62,144.73,144.68,21.1515]
[1718502821898,5.1117,144.77,144.69,6.585]
[1718502822098,8.176,144.76,144.7,5.96]
[1718502822633,5.62,144.75,144.7,5.96]
[1718502822922,8.1761,144.75,144.7,0.34]
[1718502823121,2.5561,144.75,144.7,0.17]
[1718502823337,5.62,144.74,144.7,0.17]
[1718502823539,8.1761,144.75,144.7,0.17]
[1718502824216,5.62,144.75,144.7,0.17]
[1718502825618,5.62,144.74,144.7,0.17]
[1718502827110,5.62,144.74,144.69,12.205]
[1718502827322,5.62,144.73,144.69,6.245]
[1718502828647,48.0401,144.76,144.69,6.245]
[1718502828939,7.6682,144.76,144.69,6.245]
[1718502829314,5.62,144.74,144.69,6.245]
[1718502836753,5.62,144.74,144.68,21.1515]
[1718502836944,5.62,144.71,144.68,15.5315]
[1718502837249,5.62,144.73,144.68,21.1515]
[1718502837757,5.62,144.74,144.68,21.1515]
[1718502840254,5.62,144.73,144.68,21.1515]
[1718502840455,5.62,144.72,144.68,15.5315]
[1718502842264,5.62,144.71,144.68,15.5315]
[1718502843129,5.62,144.72,144.68,15.5315]
[1718502843332,5.62,144.73,144.68,15.5315]
[1718502845052,21.6897,144.78,144.68,15.5315]
[1718502845258,5.62,144.74,144.68,21.1515]
[1718502846256,5.62,144.74,144.68,15.5315]
[1718502846461,5.62,144.74,144.68,21.1515]
[1718502846766,8.1763,144.74,144.68,21.1515]
[1718502846963,5.62,144.74,144.68,21.1515]
[1718502848253,8.1763,144.74,144.68,21.1515]
[1718502849235,13.2889,144.74,144.68,21.1515]
[1718502850364,20.9578,144.74,144.68,21.1515]
[1718502851143,18.4024,144.73,144.68,15.5315]
[1718502851465,5.62,144.72,144.68,15.5315]
[1718502851834,23.5174,144.72,144.68,15.5315]
[1718502852030,5.62,144.7,144.68,15.5315]
[1718502852234,2.5569,144.71,144.68,15.5315]
[1718502852463,5.62,144.7,144.68,15.5315]
[1718502854839,5.62,144.7,144.66,6.3143]
[1718502855638,5.62,144.71,144.66,6.3143]
[1718502858676,23.0073,144.74,144.66,6.3143]
[1718502858968,2.5564,144.74,144.66,11.9343]
[1718502859177,2.5564,144.74,144.67,0.34]
[1718502859178,5.62,144.72,144.67,0.34]
[1718502860071,5.62,144.72,144.66,11.9343]
[1718502860643,5.62,144.71,144.66,11.9343]
[1718502861071,5.62,144.71,144.66,6.3143]
[1718502862978,5.62,144.67,144.61,15.2257]
[1718502863184,5.62,144.66,144.61,15.2257]
[1718502865898,5.62,144.64,144.61,15.2257]
[1718502867002,5.62,144.65,144.61,15.2257]
[1718502868601,2.5573,144.68,144.61,15.2257]
[1718502868769,5.62,144.65,144.61,15.2257]
[1718502878697,22.48,144.69,144.61,15.2257]
[1718502878887,2.5569,144.71,144.62,5.79]
[1718502879093,5.62,144.67,144.62,0.34]
[1718502879398,5.62,144.67,144.62,5.79]
[1718502880007,5.62,144.66,144.62,0.17]
[1718502880316,5.62,144.66,144.61,15.2257]
[1718502880480,5.62,144.66,144.61,20.8457]
[1718502881009,5.62,144.66,144.61,15.2257]
[1718502882807,5.62,144.66,144.61,20.8457]
[1718502883186,7.6708,144.71,144.62,0.17]
[1718502883369,5.62,144.67,144.62,0.17]
[1718502883773,5.62,144.67,144.62,5.79]
[1718502884183,2.5568,144.71,144.62,5.79]
[1718502884392,5.62,144.68,144.62,5.79]
[1718502886616,25.5686,144.71,144.62,5.79]
[1718502886823,5.62,144.68,144.62,5.79]
[1718502889018,5.62,144.68,144.62,5.96]
[1718502890808,5.62,144.67,144.62,0.34]
[1718502891717,5.62,144.66,144.62,0.34]
[1718502892038,25.572,144.69,144.62,0.34]
[1718502892198,5.62,144.67,144.62,0.34]
[1718502892399,5.62,144.65,144.61,15.2257]
[1718502892624,5.62,144.64,144.61,15.2257]
[1718502893327,25.574,144.68,144.61,15.2257]
[1718502893499,7.6724,144.68,144.61,15.2257]
[1718502893704,2.5575,144.68,144.61,15.2257]
[1718502894319,5.62,144.66,144.61,15.2257]
[1718502895648,25.0373,144.69,144.61,15.2257]
[1718502895930,30.1516,144.69,144.61,15.2257]
[1718502896726,37.8231,144.69,144.61,15.2257]
[1718502898937,23.0138,144.7,144.61,20.8457]
[1718502899234,5.62,144.67,144.62,0.17]
[1718502900736,7.6711,144.7,144.62,0.34]
[1718502900906,5.62,144.67,144.62,0.34]
[1718502902737,15.3699,144.72,144.61,15.2257]
[1718502902738,5.62,144.66,144.61,15.2257]
[1718502902921,5.62,144.65,144.61,15.2257]
[1718502903123,27.5945,144.69,144.61,15.2257]
[1718502903316,30.1517,144.69,144.61,15.2257]
[1718502904032,5.62,144.66,144.61,15.2257]
[1718502908733,2.557,144.7,144.61,15.2257]
[1718502908940,5.62,144.66,144.61,15.2257]
[1718502909256,5.62,144.66,144.61,20.8457]
[1718502910319,20.0,144.71,144.62,5.79]
[1718502910544,5.62,144.69,144.64,0.17]
[1718502910852,23.0102,144.72,144.63,0.51]
[1718502910853,5.62,144.68,144.63,0.51]
[1718502913147,5.62,144.65,144.61,15.2257]
[1718502913449,5.62,144.64,144.61,15.2257]
[1718502916445,5.62,144.65,144.61,15.2257]
[1718502917229,5.62,144.64,144.61,15.2257]
[1718502924340,5.62,144.65,144.61,15.2257]
[1718502924760,2.557,144.7,144.61,20.8457]
[1718502924959,5.62,144.66,144.62,0.17]
[1718502925468,20.0,144.7,144.62,0.51]
[1718502925653,5.62,144.67,144.62,0.51]
[1718502926862,20.0,144.7,144.62,0.51]
[1718502927163,5.62,144.67,144.62,0.51]
[1718502929853,2.557,144.7,144.62,0.51]
[1718502930042,5.62,144.67,144.62,0.51]
[1718502931185,5.1139,144.71,144.62,6.13]
[1718502931390,5.62,144.69,144.63,5.79]
[1718502931554,5.62,144.69,144.64,0.17]
[1718502931754,5.62,144.68,144.64,0.17]
[1718502932173,5.62,144.68,144.63,0.34]
[1718502932555,5.62,144.68,144.63,0.17]
[1718502932756,5.62,144.67,144.63,0.17]
[1718502933566,5.62,144.67,144.61,20.8457]
[1718502933567,15.3444,144.68,144.61,15.2257]
[1718502933985,5.62,144.64,144.61,15.2257]
[1718502934183,5.62,144.65,144.61,15.2257]
[1718502934775,5.62,144.66,144.61,15.2257]
[1718502937591,5.62,144.67,144.62,0.68]
[1718502943094,5.62,144.66,144.62,0.68]
[1718502948503,5.62,144.65,144.61,15.2257]
[1718502948673,5.62,144.64,144.61,15.2257]
[1718502951989,5.62,144.63,144.61,15.2257]
[1718502952188,5.62,144.63,144.58,0.17]
[1718502952628,5.62,144.61,144.57,15.0717]
[1718502952780,5.62,144.6,144.57,15.0717]
[1718502957322,5.62,144.59,144.57,15.0717]
[1718502957515,5.62,144.59,144.54,15.0717]
[1718502957689,5.62,144.58,144.55,0.17]
[1718502959727,5.62,144.59,144.55,0.17]
[1718502963108,23.0199,144.66,144.55,0.34]
[1718502963310,25.5777,144.66,144.56,0.51]
[1718502963537,5.62,144.6,144.56,0.51]
[1718502964233,20.0,144.65,144.56,6.13]
[1718502964419,5.62,144.63,144.58,5.79]
[1718502964625,5.62,144.63,144.58,20.8617]
[1718502965051,5.62,144.63,144.58,15.2417]
[1718502965221,16.6071,144.67,144.58,15.2417]
[1718502965413,5.62,144.63,144.59,0.51]
[1718502966353,5.62,144.62,144.59,0.51]
[1718502967451,5.62,144.64,144.59,0.51]
[1718502968438,5.62,144.64,144.59,6.13]
[1718502968639,5.62,144.64,144.59,0.51]